fUSD/lending_fUSD_20251030
["ID","MTS","AMOUNT","RATE_DAILY","PERIOD"]
[392709276,1761841853075,-53046.5545617,0.00029518,3]
[392709277,1761841853085,-477.13749083,0.00029518,3]
[392709278,1761841853095,-151.0,0.00029518,31]
[392709279,1761841853104,-151.0,0.00029518,31]
[392709280,1761841853113,-151.0,0.00029518,31]
[392709281,1761841853123,-151.0,0.00029518,31]
[392709282,1761841853132,-151.0,0.00029518,31]
[392709283,1761841853142,-151.0,0.00029518,31]
[392709284,1761841853151,-151.0,0.00029518,31]
[392709285,1761841853162,-153.237069,0.00029518,31]
[392709286,1761841853171,-228.406064,0.00029518,31]
[392709287,1761841853181,-152.093355,0.00029518,31]
[392709288,1761841853190,-151.0,0.00029518,31]
[392709289,1761841853200,-154.036586,0.00029518,31]
[392709290,1761841853209,-154.067118,0.00029518,31]
[392709291,1761841853218,-235.17681,0.00029518,31]
[392709292,1761841853229,-235.17681,0.00029518,31]
[392709293,1761841853239,-235.17681,0.00029518,31]
[392709294,1761841853248,-261.566282,0.00029518,31]
[392709295,1761841853259,-261.566282,0.00029518,31]
[392709296,1761841853269,-151.0,0.00029518,31]
[392709297,1761841853279,-261.566282,0.00029518,31]
[392709298,1761841853289,-235.507872,0.00029518,31]
[392709299,1761841853298,-261.566282,0.00029518,31]
[392709300,1761841853308,-235.507872,0.00029518,31]
[392709301,1761841853317,-235.507872,0.00029518,31]
[392709302,1761841853327,-235.507872,0.00029518,31]
[392709303,1761841853337,-151.0,0.00029518,31]
[392709304,1761841853347,-151.0,0.00029518,31]
[392709305,1761841853357,-151.0,0.00029518,31]
[392709306,1761841853367,-151.0,0.00029518,31]
[392709307,1761841853377,-151.160957,0.00029518,7]
[392709308,1761841853386,-151.0,0.00029518,31]
[392709309,1761841853397,-151.0,0.00029518,31]
[392709310,1761841853407,-151.0,0.00029518,31]
[392709311,1761841853417,-220.794528,0.00029518,31]
[392709312,1761841853427,-151.0,0.00029518,31]
[392709313,1761841853436,-151.0,0.00029518,31]
[392709314,1761841853445,-151.0,0.00029518,31]
[392709315,1761841853455,-151.0,0.00029518,31]
[392709316,1761841853465,-151.0,0.00029518,31]
[392709317,1761841853474,-151.0,0.00029518,31]
[392709318,1761841853484,-154.149232,0.00029518,31]
[392709319,1761841853494,-251.271891,0.00029518,31]
[392709320,1761841853503,-251.271891,0.00029518,31]
[392709321,1761841853513,-251.271891,0.00029518,31]
[392709322,1761841853522,-251.271891,0.00029518,31]
[392709323,1761841853532,-251.271891,0.00029518,31]
[392709324,1761841853541,-251.271891,0.00029518,31]
[392709325,1761841853551,-251.271891,0.00029518,31]
[392709326,1761841853561,-251.271895,0.00029518,31]
[392709327,1761841853571,-189.46671,0.00029518,31]
[392709328,1761841853581,-189.46671,0.00029518,31]
[392709329,1761841853591,-189.46671,0.00029518,31]
[392709330,1761841853602,-189.46671,0.00029518,31]
[392709331,1761841853612,-189.46671,0.00029518,31]
[392709332,1761841853622,-189.46671,0.00029518,31]
[392709333,1761841853632,-182.718692,0.00029518,31]
[392709334,1761841853642,-182.718692,0.00029518,31]
[392709335,1761841853652,-189.46671,0.00029518,31]
[392709336,1761841853663,-189.46671,0.00029518,31]
[392709337,1761841853672,-182.718692,0.00029518,31]
[392709338,1761841853682,-182.718692,0.00029518,31]
[392709339,1761841853691,-182.718692,0.00029518,31]
[392709340,1761841853701,-182.718692,0.00029518,31]
[392709341,1761841853710,-182.718692,0.00029518,31]
[392709342,1761841853720,-182.718701,0.00029518,31]
[392709343,1761841853730,-158.108511,0.00029518,31]
[392709344,1761841853740,-158.108511,0.00029518,31]
[392709345,1761841853749,-158.108511,0.00029518,31]
[392709346,1761841853759,-158.108511,0.00029518,31]
[392709347,1761841853769,-158.108511,0.00029518,31]
[392709348,1761841853778,-158.108511,0.00029518,31]
[392709349,1761841853787,-151.0,0.00029518,31]
[392709350,1761841853797,-158.108511,0.00029518,31]
[392709351,1761841853807,-158.108509,0.00029518,31]
[392709352,1761841853816,-3992.327646,0.00029518,31]
[392709353,1761841853826,-3992.327646,0.00029518,31]
[392709354,1761841853835,-570.397261,0.00029518,31]
[392709355,1761841853845,-301.536844,0.00029518,31]
[392709356,1761841853855,-151.0,0.00029518,31]
[392709357,1761841853865,-151.0,0.00029518,31]
[392709358,1761841853875,-3992.327646,0.00029518,31]
[392709359,1761841853884,-570.397261,0.00029518,31]
[392709360,1761841853894,-301.536844,0.00029518,31]
[392709361,1761841853904,-3992.327643,0.00029518,31]
[392709362,1761841853916,-570.397261,0.00029518,31]
[392709363,1761841853926,-301.536844,0.00029518,31]
[392709364,1761841853936,-570.397269,0.00029518,31]
[392709365,1761841853946,-301.53684,0.00029518,31]
[392709366,1761841853955,-315.532107,0.00029518,31]
[392709367,1761841853967,-315.532107,0.00029518,31]
[392709368,1761841853976,-315.532107,0.00029518,31]
[392709369,1761841853986,-315.532111,0.00029518,31]
[392709370,1761841853998,-151.0,0.00029518,31]
[392709371,1761841854008,-155.481641,0.00029518,31]
[392709372,1761841854018,-155.481641,0.00029518,31]
[392709373,1761841854028,-155.481641,0.00029518,31]
[392709374,1761841854038,-155.481646,0.00029518,31]
[392709375,1761841854048,-226.01,0.00029527,7]
[392709376,1761841854058,-2016.50323926,0.00029528,2]
[392709377,1761841854070,-241.574688,0.00029528,31]
[392709378,1761841854079,-151.0,0.00029528,30]
[392709379,1761841854088,-151.0,0.00029528,31]
[392709380,1761841854098,-151.0,0.00029528,31]
[392709381,1761841854108,-151.0,0.00029528,31]
[392709382,1761841854117,-151.0,0.00029528,31]
[392709383,1761841854126,-154.702919,0.00029528,31]
[392709384,1761841854136,-157.055689,0.00029528,31]
[392709385,1761841854145,-151.0,0.00029528,31]
[392709386,1761841854155,-167.628736,0.00029528,31]
[392709387,1761841854165,-156.069111,0.00029528,31]
[392709388,1761841854174,-151.0,0.00029528,31]
[392709389,1761841854184,-151.0,0.00029528,31]
[392709390,1761841854196,-151.0,0.00029528,31]
[392709391,1761841854206,-151.0,0.00029528,31]
[392709392,1761841854216,-151.0,0.00029528,31]
[392709393,1761841854225,-151.0,0.00029528,31]
[392709394,1761841854236,-151.0,0.00029528,31]
[392709395,1761841854246,-151.000005,0.00029528,31]
[392709396,1761841854256,-151.0,0.00029528,31]
[392709397,1761841854266,-151.0,0.00029528,31]
[392709398,1761841854276,-151.0,0.00029528,31]
[392709399,1761841854286,-151.0,0.00029528,31]
[392709400,1761841854296,-151.0,0.00029528,31]
[392709401,1761841854306,-151.0,0.00029528,31]
[392709402,1761841854316,-151.0,0.00029528,31]
[392709403,1761841854326,-151.0,0.00029528,31]
[392709404,1761841854336,-153.008316,0.00029528,31]
[392709405,1761841854346,-151.0,0.00029528,31]
[392709406,1761841854356,-213.369757,0.00029528,31]
[392709407,1761841854365,-174.508168,0.00029528,31]
[392709408,1761841854374,-151.0,0.00029528,31]
[392709409,1761841854384,-151.0,0.00029528,31]
[392709410,1761841854393,-151.0,0.00029528,31]
[392709411,1761841854402,-151.0,0.00029528,31]
[392709412,1761841854411,-162.030201,0.00029528,31]
[392709413,1761841854420,-151.0,0.00029528,31]
[392709414,1761841854429,-151.0,0.00029528,31]
[392709415,1761841854438,-213.260896,0.00029528,31]
[392709416,1761841854448,-151.0,0.00029528,30]
[392709417,1761841854457,-151.0,0.00029528,31]
[392709418,1761841854466,-151.0,0.00029528,31]
[392709419,1761841854476,-151.0,0.00029528,31]
[392709420,1761841854485,-151.0,0.00029528,31]
[392709421,1761841854494,-151.0,0.00029528,31]
[392709422,1761841854503,-151.0,0.00029528,31]
[392709423,1761841854512,-151.0,0.00029528,31]
[392709424,1761841854521,-151.0,0.00029528,31]
[392709425,1761841854530,-151.0,0.00029528,31]
[392709426,1761841854539,-151.0,0.00029528,31]
[392709427,1761841854548,-151.0,0.00029528,15]
[392709428,1761841854557,-151.0,0.00029528,15]
[392709429,1761841854566,-151.0,0.00029528,15]
[392709430,1761841854575,-151.0,0.00029528,15]
[392709431,1761841854584,-151.0,0.00029528,31]
[392709432,1761841854594,-161.595887,0.00029528,31]
[392709433,1761841854603,-151.0,0.00029528,31]
[392709434,1761841854612,-174.367305,0.00029528,31]
[392709435,1761841854622,-157.671983,0.00029528,31]
[392709436,1761841854631,-151.0,0.00029528,31]
[392709437,1761841854639,-151.0,0.00029528,31]
[392709438,1761841854649,-151.0,0.00029528,31]
[392709439,1761841854660,-155.605565,0.00029528,31]
[392709440,1761841854669,-151.0,0.00029528,31]
[392709441,1761841854678,-151.0,0.00029528,31]
[392709442,1761841854687,-151.0,0.00029528,31]
[392709443,1761841854696,-151.0,0.00029528,31]
[392709444,1761841854705,-151.0,0.00029528,31]
[392709445,1761841854714,-151.0,0.00029528,31]
[392709446,1761841854723,-151.0,0.00029528,31]
[392709447,1761841854732,-151.0,0.00029528,31]
[392709448,1761841854742,-151.0,0.00029528,31]
[392709449,1761841854752,-235.17681,0.00029528,31]
[392709450,1761841854762,-235.17681,0.00029528,31]
[392709451,1761841854772,-235.176816,0.00029528,31]
[392709452,1761841854782,-261.566282,0.00029528,31]
[392709453,1761841854791,-261.566282,0.00029528,31]
[392709454,1761841854801,-151.0,0.00029528,31]
[392709455,1761841854810,-261.566282,0.00029528,31]
[392709456,1761841854820,-261.566291,0.00029528,31]
[392709457,1761841854829,-235.507872,0.00029528,31]
[392709458,1761841854838,-235.507872,0.00029528,31]
[392709459,1761841854847,-235.507872,0.00029528,31]
[392709460,1761841854856,-235.507863,0.00029528,31]
[392709461,1761841854866,-151.0,0.00029528,31]
[392709462,1761841854875,-151.0,0.00029528,31]
[392709463,1761841854885,-151.0,0.00029528,31]
[392709464,1761841854895,-151.0,0.00029528,31]
[392709465,1761841854905,-151.0,0.00029528,31]
[392709466,1761841854919,-151.0,0.00029528,31]
[392709467,1761841854928,-151.0,0.00029528,31]
[392709468,1761841854938,-151.0,0.00029528,31]
[392709469,1761841854947,-151.0,0.00029528,31]
[392709470,1761841854959,-15647.4861471,0.00029552,3]
[392709471,1761841855371,-151.0,0.00029037,31]
[392709472,1761841855380,-119.88647668,0.00029137,31]
[392709504,1761841947665,464.53672839,0.00031507,120]
[392709517,1761842030433,4906607.90482395,0.00031507,120]
[392709594,1761842235577,600.0,0.00013,2]
[392709595,1761842235765,500.0,0.00013,2]
[392709596,1761842236633,500.0,0.00013,2]
[392709597,1761842236977,675.7722722,0.00012,2]
[392709598,1761842242930,500.0,0.00013,2]
[392709599,1761842243395,800.0,0.00012,2]
[392709600,1761842244650,655.1278925,0.00013,2]
[392709601,1761842245168,500.0,0.00013,2]
[392709602,1761842245483,505.70594868,0.00012,2]
[392709603,1761842294440,151.0,0.00013,2]
[392709666,1761842595539,151.0,0.00013,2]
[392709667,1761842596639,276.48790244,0.00013,2]
[392709721,1761842812206,-1030.0,0.00017,10]
[392709722,1761842812226,-250.0,0.000187,2]
[392709723,1761842812248,-904.0,0.0002162,2]
[392709724,1761842812270,-189.01937434,0.0002162,2]
[392709725,1761842839986,500.0,0.00013,2]
[392709785,1761843032277,-270.84,0.00021602,2]
[392710236,1761843038258,-206.29749083,0.00021602,2]
[392710237,1761843038272,-204.6992929,0.0002162,2]
[392710238,1761843038283,-150.0,0.0002162,2]
[392710239,1761843038293,-150.0,0.0002462,2]
[392710240,1761843038303,-369.73,0.00025885,2]
[392710242,1761843038314,-2000.0,0.000274,2]
[392710244,1761843038325,-300.0,0.00028304,2]
[392710245,1761843038336,-1200.0,0.00028304,2]
[392710246,1761843038346,-9097.2198183,0.00028305,2]
[392710247,1761843038355,-164.85691504,0.0002846,57]
[392710248,1761843038365,-1000.0,0.0002856,2]
[392710249,1761843038374,-2061.94616638,0.000286,2]
[392710255,1761843040087,-150.0,0.000279,3]
[392710256,1761843040097,-8711.00672097,0.000286,2]
[392710257,1761843040195,-2704.0,0.000286,2]
[392710258,1761843040209,-3324.97449205,0.000286,2]
[392710259,1761843040220,-250.0,0.00028604,2]
[392710260,1761843040232,-209.13,0.00028612,2]
[392710261,1761843040242,-1293.85,0.0002864,2]
[392710262,1761843040253,-625.48,0.0002864,2]
[392710263,1761843040265,-150.0,0.0002864,2]
[392710264,1761843040276,-500.0,0.00028658,2]
[392710265,1761843040286,-1220.86,0.00028668,2]
[392710266,1761843040296,-999.0,0.00028676,3]
[392710267,1761843040307,-238.26503669,0.00028749,2]
[392710268,1761843040318,-4844.65973892,0.0002875,2]
[392710269,1761843040331,-155.34026108,0.0002875,2]
[392710270,1761843040342,-429.89,0.00028914,30]
[392710271,1761843040353,-252.6314,0.00029037,2]
[392710272,1761843040364,-600.0,0.00029137,11]
[392710273,1761843040374,-600.0,0.00029137,11]
[392710274,1761843040384,-600.0,0.00029137,11]
[392710275,1761843040395,-600.0,0.00029137,11]
[392710276,1761843040412,-600.0,0.00029137,11]
[392710277,1761843040422,-600.0,0.00029137,11]
[392710278,1761843040433,-600.0,0.00029137,11]
[392710279,1761843040443,-308.85667775,0.00029137,11]
[392710280,1761843040455,-291.14332225,0.00029137,11]
[392710281,1761843040466,-369.73,0.00029309,2]
[392710282,1761843040476,-200.0,0.00029474,2]
[392710283,1761843040486,-500.0,0.00029521,2]
[392710284,1761843040497,-620.0,0.00029521,2]
[392710285,1761843040507,-7011.27342932,0.00029539,2]
[392710287,1761843040519,-1990.08,0.00029539,2]
[392710288,1761843040543,-150.0,0.000284,3]
[392710289,1761843040553,-1094.50824888,0.00029539,2]
[392710290,1761843040563,-320.23795,0.00029552,15]
[392710291,1761843040572,-1425.0,0.0002968,2]
[392710292,1761843040581,-1425.0,0.00029688,2]
[392710293,1761843040590,-1425.0,0.00029691,2]
[392710294,1761843040600,-1425.0,0.00029694,2]
[392710295,1761843040609,-1425.0,0.00029717,2]
[392710296,1761843040618,-659.41606803,0.00029726,2]
[392710299,1761843043136,-765.58393197,0.00029726,2]
[392710300,1761843043146,-1425.0,0.00029733,2]
[392710301,1761843043159,-1425.0,0.00029736,2]
[392710302,1761843043169,-1425.0,0.00029737,2]
[392710303,1761843043179,-1425.0,0.00029746,2]
[392710304,1761843043189,-1330.02457516,0.00029772,2]
[392710305,1761843043201,-94.97542484,0.00029772,2]
[392710306,1761843043210,-1425.0,0.00029775,2]
[392710307,1761843043220,-320.9074741,0.00029782,2]
[392710308,1761843043232,-978.43883547,0.00029782,2]
[392710309,1761843043243,-111.67902826,0.00029789,2]
[392710310,1761843043254,-1240.0779603,0.00029789,2]
[392710311,1761843043266,-73.24301144,0.00029789,2]
[392710312,1761843043278,-356.45491428,0.00029794,2]
[392710313,1761843043351,-1068.54508572,0.00029794,2]
[392710314,1761843043361,-1613.20259148,0.000298,2]
[392710315,1761843043371,-1425.0,0.00029805,2]
[392710316,1761843043381,-1425.0,0.00029819,2]
[392710317,1761843043392,-1425.0,0.00029821,2]
[392710318,1761843043401,-336.98623474,0.0002983,2]
[392710319,1761843043411,-1425.0,0.00029854,2]
[392710320,1761843043420,-1651.06090199,0.00029858,2]
[392710322,1761843043480,-848.93909801,0.00029858,2]
[392710323,1761843043489,-170.39720668,0.00029867,2]
[392710324,1761843043505,-877.1413088,0.00029867,2]
[392710325,1761843043515,-55.54081756,0.00029873,60]
[392710326,1761843043527,-109.31609747,0.00029873,60]
[392710327,1761843043540,-564.29521402,0.0002988,2]
[392710328,1761843043551,-275.66180851,0.00029881,2]
[392710336,1761843818449,159.67,0.00013976,2]
[392710337,1761843854393,-159.67,0.00015529,2]
[392710338,1761844174154,-159.67,0.00017082,2]
[392710339,1761844174178,-159.67,0.00018635,2]
[392710361,1761844232234,-159.67,0.00020188,2]
[392710363,1761844232244,-150.0,0.00021515,2]
[392710365,1761844232254,-204.6992929,0.00021515,2]
[392710367,1761844232264,-500.0,0.00021515,2]
[392710369,1761844232274,-664.64802279,0.00021555,2]
[392710371,1761844232284,-761.11349498,0.00021654,2]
[392710377,1761844232390,-293.0,0.00021654,2]
[392710379,1761844232403,-145.88650502,0.00021654,2]
[392710381,1761844232413,-300.0,0.00021654,2]
[392710383,1761844232422,-554.11349498,0.00021655,2]
[392710392,1761844232496,-280.00834296,0.00021655,2]
[392710429,1761844238409,-2582.87816206,0.00021655,2]
[392710430,1761844238419,-820.0,0.00021655,2]
[392710431,1761844238429,-606.0,0.00021655,2]
[392710432,1761844238439,-573.0,0.00021655,2]
[392710433,1761844238449,-1593.0,0.00021655,2]
[392710434,1761844238459,-1318.106,0.00021655,2]
[392710436,1761844238469,-822.0,0.00021655,2]
[392710437,1761844238479,-1271.0,0.00021655,2]
[392710438,1761844238489,-500.0,0.000217,2]
[392710439,1761844238499,-159.67,0.00021741,2]
[392710440,1761844238508,-323.00998445,0.00022018,2]
[392710441,1761844238518,-966.83738995,0.00022019,2]
[392710442,1761844238530,-5658.16261005,0.00022019,2]
[392710443,1761844238540,-6463.0,0.00022019,2]
[392710444,1761844238550,-558.0,0.00022019,2]
[392710445,1761844238560,-175.12,0.00022885,2]
[392710446,1761844238569,-159.67,0.00023294,2]
[392710448,1761844238579,-420.0,0.00023539,2]
[392710451,1761844238596,-1680.0,0.0002365,2]
[392710452,1761844238606,-3130.02323124,0.00024279,2]
[392710453,1761844238620,-159.67,0.00024847,2]
[392710454,1761844238629,-587.0,0.00025588,2]
[392710455,1761844238639,-1565.0,0.0002583,2]
[392710456,1761844238649,-159.67,0.00026399,2]
[392710457,1761844238662,-500.0,0.00027102,7]
[392710458,1761844238672,-500.0,0.00027585,7]
[392710459,1761844238684,-500.0,0.00027599,7]
[392710460,1761844238696,-1183.43585743,0.00027626,2]
[392710461,1761844238706,-823.0,0.00027816,2]
[392710462,1761844238717,-664.6480228,0.00027947,2]
[392710463,1761844238727,-159.67,0.00027952,2]
[392710464,1761844238737,-500.0,0.00027997,7]
[392710465,1761844238747,-250.0,0.00028047,2]
[392710466,1761844238757,-287.46647012,0.00028047,2]
[392710467,1761844238768,-250.0,0.00028047,2]
[392710468,1761844238778,-250.0,0.00028047,2]
[392710469,1761844238787,-250.0,0.00028047,2]
[392710470,1761844238797,-250.0,0.00028047,2]
[392710471,1761844238807,-250.0,0.00028047,2]
[392710472,1761844238818,-500.0,0.00028047,2]
[392710473,1761844238828,-250.0,0.00028047,2]
[392710474,1761844238838,-267.07949348,0.00028047,2]
[392710475,1761844238848,-500.0,0.00028047,2]
[392710476,1761844238858,-500.0,0.00028047,2]
[392710477,1761844238868,-500.0,0.00028047,2]
[392710478,1761844238878,-250.0,0.00028047,2]
[392710479,1761844238889,-500.0,0.00028047,2]
[392710480,1761844238899,-250.0,0.00028047,2]
[392710481,1761844238911,-250.0,0.00028047,2]
[392710482,1761844238921,-250.0,0.00028047,2]
[392710483,1761844238931,-250.0,0.00028047,2]
[392710484,1761844238942,-250.0,0.00028047,2]
[392710485,1761844238955,-620.0,0.00028047,2]
[392710486,1761844238966,-168.0,0.00028051,2]
[392710487,1761844238976,-477.13749083,0.00028063,2]
[392710488,1761844238987,-505.0388165,0.000281,5]
[392710489,1761844238997,-500.0,0.000281,5]
[392710490,1761844239008,-500.0,0.000281,5]
[392710491,1761844239019,-500.0,0.000281,5]
[392710492,1761844239029,-500.0,0.000281,5]
[392710493,1761844239039,-168.0,0.00028125,2]
[392710494,1761844239050,-500.0,0.00028162,7]
[392710495,1761844239060,-2000.0,0.000282,2]
[392710496,1761844239070,-500.0,0.0002825,5]
[392710497,1761844239080,-150.0,0.00028356,4]
[392710498,1761844239089,-642.94,0.00028595,2]
[392710499,1761844239098,-300.0,0.00028607,2]
[392710500,1761844239108,-1774.04,0.00028607,2]
[392710501,1761844239117,-349.3377827,0.00028648,5]
[392710502,1761844239127,-500.0,0.00028648,5]
[392710503,1761844239138,-500.0,0.00028648,5]
[392710504,1761844239148,-458.16988647,0.00028648,5]
[392710505,1761844239164,-500.0,0.00028682,7]
[392710506,1761844239174,-168.0,0.00028749,2]
[392710507,1761844239184,-666.72878,0.00029143,2]
[392710508,1761844239195,-1482.74788791,0.00029228,2]
[392710509,1761844239205,-558.07929573,0.00029341,7]
[392710510,1761844239215,-168.0,0.00029363,2]
[392710511,1761844239225,-169085.56935971,0.0002955,2]
[392710512,1761844239235,-1361.51858514,0.0002955,2]
[392710513,1761844239245,-225.79762859,0.0002955,2]
[392710514,1761844239255,-5501.1012687,0.00029588,2]
[392710515,1761844239265,-401.0,0.00029648,2]
[392710516,1761844239275,-200.0,0.00029649,2]
[392710517,1761844239285,-1000.0,0.00029668,2]
[392710518,1761844239295,-5307.7838046,0.00029669,2]
[392710519,1761844239305,-2482.7880201,0.00029669,2]
[392710520,1761844239315,-2755.3345886,0.00029669,2]
[392710521,1761844239325,-8766.607706,0.00029669,2]
[392710522,1761844239334,-61380.27555289,0.00029678,3]
[392710523,1761844240462,-150.0,0.00028085,3]
[392710524,1761844240472,-531.60729487,0.00029678,3]
[392710525,1761844240484,-4044.39697291,0.00029678,3]
[392710526,1761844240507,-2400.19444097,0.00029678,3]
[392710527,1761844240730,-150.0,0.00028585,3]
[392710528,1761844240740,-1822.26,0.00029678,3]
[392710541,1761844243967,-210.60872465,0.00029579,2]
[392710542,1761844243977,-582.78190383,0.00029678,3]
[392710543,1761844244022,-8231.06021543,0.00029678,3]
[392710544,1761844244031,-281.302737,0.00029679,31]
[392710545,1761844244040,-151.0,0.00029679,31]
[392710546,1761844244050,-214.45362487,0.00029687,2]
[392710547,1761844244059,-167.38807642,0.00029687,2]
[392710548,1761844244069,-514.94236347,0.00029687,2]
[392710549,1761844244078,-151.0,0.00029688,31]
[392710550,1761844244088,-151.0,0.00029688,31]
[392710551,1761844244098,-260.86722035,0.00029688,31]
[392710552,1761844244107,-151.0,0.00029688,31]
[392710553,1761844244116,-151.0,0.00029688,31]
[392710554,1761844244126,-151.0,0.00029688,31]
[392710555,1761844244135,-151.0,0.00029688,31]
[392710556,1761844244144,-151.0,0.00029688,31]
[392710557,1761844244153,-151.0,0.00029688,31]
[392710558,1761844244166,-151.0,0.00029688,31]
[392710559,1761844244175,-151.0,0.00029688,31]
[392710560,1761844244185,-151.0,0.00029688,31]
[392710561,1761844244194,-151.0,0.00029688,31]
[392710562,1761844244204,-151.0,0.00029688,31]
[392710563,1761844244213,-151.0,0.00029688,31]
[392710564,1761844244223,-151.0,0.00029688,31]
[392710565,1761844244233,-151.0,0.00029688,31]
[392710566,1761844244242,-153.563429,0.00029688,31]
[392710567,1761844244251,-151.0,0.00029688,31]
[392710568,1761844244261,-166.407196,0.00029688,31]
[392710569,1761844244270,-151.0,0.00029688,31]
[392710570,1761844244280,-151.0,0.00029688,31]
[392710571,1761844244290,-119881.89616598,0.00029688,2]
[392710572,1761844244299,-3835.09547492,0.00029688,2]
[392710587,1761844246236,-151.0,0.00029688,31]
[392710589,1761844246245,-100.18494031,0.00029688,31]
[392710594,1761844246552,-50.81505969,0.00029688,31]
[392710595,1761844246562,-151.0,0.00029688,31]
[392710596,1761844246572,-20004.52231064,0.00029688,2]
[392710597,1761844246583,-3773.65,0.00029688,2]
[392710604,1761844978423,-176.85,0.00028843,120]
[392710605,1761844978452,-171.0,0.00029023,120]
[392710606,1761844978516,-4906607.90482395,0.00031507,120]
[392710607,1761844978543,-93044.24517605,0.00031507,120]
[392710608,1761844993520,-4813563.6596479,0.00031507,120]
[392710609,1761844993549,-186436.3403521,0.00031507,120]
[392710610,1761844998305,-4720171.56447185,0.00031507,120]
[392710611,1761844998334,-279828.43552815,0.00031507,120]
[392710613,1761845021501,-4626779.4692958,0.00031507,120]
[392710614,1761845021535,-373220.5307042,0.00031507,120]
[392710615,1761845024893,-4533387.37411975,0.00031507,120]
[392710616,1761845107468,49840.33,0.00015,2]
[392710617,1761845107501,940.33,0.00015,2]
[392710618,1761845107529,90000.0,0.00015,2]
[392710619,1761845107569,59219.34,0.00015,2]
[392710621,1761845130847,478.14,0.00013699,2]
[392710630,1761845270417,833749.91559399,0.00015,2]
[392710647,1761845348129,-1517.64,0.000153,2]
[392710661,1761845431595,-150.0,0.00020187,2]
[392710662,1761845431605,-478.14,0.00020187,2]
[392710663,1761845431615,-496.16,0.00022,2]
[392710664,1761845431864,-1873.74,0.00022,2]
[392710679,1761845437462,-1734.42262922,0.00022,2]
[392710680,1761845437472,-164.85691504,0.00023024,44]
[392710681,1761845437482,-248.72045574,0.00023039,2]
[392710682,1761845437516,-228.41703509,0.00023039,2]
[392710683,1761845437526,-1186.0,0.00023124,2]
[392710684,1761845437535,-904.0,0.00023124,2]
[392710685,1761845437544,-295.79,0.00025955,2]
[392710686,1761845437554,-478.14,0.00026676,2]
[392710687,1761845437563,-2000.0,0.000277,2]
[392710688,1761845437573,-500.0,0.00027714,7]
[392710689,1761845437582,-250.0,0.00028662,2]
[392710690,1761845437591,-423.82,0.00028806,2]
[392710691,1761845437601,-1000.0,0.00028812,2]
[392710692,1761845437611,-1000.0,0.00028835,2]
[392710693,1761845437620,-1000.0,0.00028839,2]
[392710694,1761845437629,-1046.89,0.00028839,2]
[392710695,1761845437639,-408.39,0.00028963,30]
[392710696,1761845437648,-295.79,0.00029379,2]
[392710697,1761845437657,-851.53978002,0.00029604,7]
[392710698,1761845437667,-200.0,0.00029642,2]
[392710699,1761845437678,-620.0,0.00029671,2]
[392710701,1761845437688,-3602.3830547,0.00029682,2]
[392710703,1761845437697,-200.0,0.00029688,2]
[392710705,1761845437706,-164.22135699,0.00029688,2]
[392710707,1761845437715,-824.0,0.00029688,3]
[392710708,1761845437724,-824.0,0.00029688,3]
[392710709,1761845437734,-824.0,0.00029688,3]
[392710711,1761845437743,-824.0,0.00029688,3]
[392710713,1761845437751,-889.40987918,0.00029688,3]
[392710715,1761845437761,-46430.02116946,0.00029688,2]